bitfinex/quotes_ETHUSD_20250318
["timestamp","ask_amount","ask_price","bid_price","bid_amount"]
[1742256575756,5.17759,1931.4,1931.3,4.836]
[1742256582592,5.17759,1931.4,1931.2,0.55]
[1742256584863,8.81173982,1931.5,1931.2,0.55]
[1742256585058,8.81173982,1931.5,1931.2,2.205024]
[1742256585297,13.98926982,1931.5,1931.2,0.55]
[1742256585662,5.17764,1931.4,1931.2,0.55]
[1742256586398,0.61910787,1932.1,1931.2,0.55]
[1742256586697,3.63438982,1932.1,1932.0,5.17598]
[1742256586995,3.63438982,1932.3,1932.0,10.83455]
[1742256587293,8.80903982,1932.5,1932.1,5.7256]
[1742256587506,13.98388982,1932.5,1932.1,5.7256]
[1742256587868,13.98388982,1932.5,1932.1,0.55]
[1742256588468,8.80903982,1932.5,1932.1,1.7968005]
[1742256588667,8.80903982,1932.5,1932.1,6.9724205]
[1742256589112,8.80903982,1932.5,1932.1,12.1479605]
[1742256589622,10.34887,1932.6,1932.1,6.9723405]
[1742256589810,3.63438982,1932.5,1932.2,5.17543]
[1742256590728,5.175,1932.4,1932.1,0.55]
[1742256592236,3.63438982,1932.3,1932.1,0.55]
[1742256592434,3.63438982,1932.3,1932.1,7.381686]
[1742256594132,3.63438982,1932.3,1932.1,2.206036]
[1742256594339,3.63438982,1932.3,1932.1,0.55]
[1742256595723,3.63438982,1932.3,1932.1,5.72565]
[1742256596494,3.63438982,1932.3,1932.2,4.852]
[1742256601401,3.63438982,1932.3,1932.2,5.402]
[1742256602600,3.63438982,1932.3,1932.2,4.852]
[1742256603629,8.80955982,1932.3,1932.2,4.852]
[1742256603844,8.80955982,1932.3,1932.0,0.55]
[1742256603845,0.8288,1932.2,1931.8,0.8167]
[1742256604131,3.63438982,1931.9,1931.8,4.849]
[1742256604702,8.81075982,1931.9,1931.6,0.8167]
[1742256604904,10.3528,1931.9,1931.7,4.857]
[1742256605113,3.63438982,1931.8,1931.7,4.857]
[1742256606429,8.81089982,1931.8,1931.5,0.55]
[1742256606630,5.17689,1931.7,1931.6,4.856]
[1742256608232,5.17689,1931.7,1931.5,0.55]
[1742256608233,5.17689,1931.7,1931.5,5.404]
[1742256608729,10.35386,1931.7,1931.5,5.404]
[1742256608934,8.81143982,1931.6,1931.5,4.854]
[1742256609736,5.17747,1931.5,1931.4,4.856]
[1742256610033,8.81185982,1931.5,1931.4,4.856]
[1742256610407,3.63438982,1931.5,1931.4,4.856]
[1742256614139,8.81170982,1931.5,1931.2,0.7876]
[1742256614338,3.63438982,1931.3,1931.0,5.96623]
[1742256614520,3.63438982,1931.1,1930.9,5.17891]
[1742256614715,3.63438982,1931.1,1931.0,5.411]
[1742256614932,3.63438982,1931.1,1931.0,4.86]
[1742256615438,8.81277982,1931.1,1931.0,4.86]
[1742256615675,3.63438982,1931.1,1931.0,4.86]
[1742256618944,8.81226982,1931.3,1931.0,4.86]
[1742256620046,3.63438982,1931.3,1931.0,10.03864]
[1742256620555,8.81224982,1931.3,1931.0,10.03864]
[1742256620717,8.81224982,1931.3,1931.0,4.86]
[1742256626555,5.17814,1931.2,1931.0,4.86]
[1742256626965,8.81224982,1931.3,1931.0,4.86]
[1742256627165,3.63438982,1931.1,1930.8,1.81541223]
[1742256627372,3.63438982,1930.9,1930.6,6.0076]
[1742256627550,3.63438982,1930.9,1930.6,4.852]
[1742256627551,5.17921,1930.8,1930.6,4.852]
[1742256628361,9.60540982,1930.9,1930.6,4.852]
[1742256628574,3.63438982,1930.9,1930.6,10.03159]
[1742256630134,3.63438982,1930.9,1930.6,6.373158]
[1742256630363,3.63438982,1930.9,1930.7,6.55727]
[1742256632160,6.8119,1931.7,1931.3,5.17771]
[1742256632470,17.121,1932.0,1931.6,5.17698]
[1742256632471,3.63438982,1932.0,1931.6,5.17698]
[1742256632656,8.81036982,1932.0,1931.5,5.17731]
[1742256632839,5.17635,1931.9,1931.5,5.17731]
[1742256633179,3.63438982,1931.8,1931.5,0.572731]
[1742256633363,8.81036982,1932.0,1931.5,5.749931]
[1742256633988,8.81036982,1932.0,1931.5,10.927041]
[1742256634158,8.81036982,1932.0,1931.5,5.749841]
[1742256634357,13.98651982,1932.0,1931.5,5.749841]
[1742256634664,8.81036982,1932.0,1931.5,10.927041]
[1742256635470,8.81036982,1932.0,1931.5,5.749841]
[1742256635675,5.17635,1931.9,1931.5,5.749841]
[1742256636344,3.63438982,1932.0,1931.6,1.1249841]
[1742256636676,8.81050982,1932.0,1931.6,1.1249841]
[1742256636846,8.81050982,1932.0,1931.6,6.3019941]
[1742256637253,5.17627,1931.9,1931.6,1.1249841]
[1742256637552,3.63438982,1931.8,1931.5,0.8311]
[1742256639375,8.81090982,1931.8,1931.5,0.8311]
[1742256639976,3.63438982,1931.8,1931.5,0.8311]
[1742256641165,3.63438982,1931.8,1931.5,6.00837]
[1742256641975,3.63438982,1931.8,1931.5,0.8311]
[1742256642190,3.63438982,1931.8,1931.5,2.004693]
[1742256642559,3.63438982,1931.8,1931.5,7.182003]
[1742256645283,3.63438982,1931.8,1931.5,2.004693]
[1742256645578,8.81093982,1931.8,1931.5,0.8311]
[1742256645779,8.81093982,1931.8,1931.5,0.55]
[1742256645986,3.63438982,1931.8,1931.5,0.55]
[1742256648076,3.63438982,1931.8,1931.5,5.72731]
[1742256648784,5.17627,1931.9,1931.5,5.72731]
[1742256654389,8.81036982,1932.0,1931.5,5.72714]
[1742256654593,8.81111982,1931.8,1931.5,0.55]
[1742256655189,9.59671982,1931.8,1931.5,0.55]
[1742256655390,5.17683,1931.7,1931.4,0.7528]
[1742256655558,5.17683,1931.7,1931.5,4.859]
[1742256657395,5.17742,1931.5,1931.2,0.7982]
[1742256657601,3.63438982,1931.4,1931.2,5.6562]
[1742256657758,3.63438982,1931.4,1931.2,4.858]
[1742256658175,3.63438982,1931.4,1931.0,11.3386]
[1742256658373,3.63438982,1931.4,1931.1,4.863]
[1742256658374,8.81208982,1931.4,1931.1,4.863]
[1742256658581,5.17791,1931.3,1931.1,4.863]
[1742256659116,5.17791,1931.3,1930.8,22.29818]
[1742256659117,9.59303982,1931.2,1931.0,4.863]
[1742256660507,9.59303982,1931.2,1930.8,5.66364663]
[1742256660798,9.59303982,1931.2,1930.9,4.863]
[1742256662666,14.77136982,1931.2,1930.8,5.34261436]
[1742256662894,11.0701768,1931.2,1930.8,5.34261436]
[1742256663395,11.0701768,1931.2,1930.8,10.52177436]
[1742256663691,11.0701768,1931.2,1930.8,4.861]
[1742256663900,8.81306982,1931.0,1930.8,0.48489289]
[1742256664097,1.63680698,1930.9,1930.8,0.48489289]
[1742256664299,6.81573698,1930.9,1930.8,0.48489289]
[1742256665392,5.17934,1930.8,1930.4,1.3423]
[1742256665704,8.81395982,1930.7,1930.4,5.415]
[1742256666005,8.81395982,1930.7,1930.4,4.865]
[1742256666201,10.2132898,1930.7,1930.4,4.865]
[1742256666575,15.3929698,1930.7,1930.4,4.866]
[1742256666896,3.63438982,1930.5,1930.4,4.866]
[1742256667092,8.81438982,1930.5,1930.1,5.18107]
[1742256667297,8.81438982,1930.5,1930.2,4.867]
[1742256667907,10.2954208,1930.5,1930.2,4.867]
[1742256670912,15.4756308,1930.5,1930.1,1.04811923]
[1742256671208,5.18043,1930.4,1930.1,5.413]
[1742256671411,5.18043,1930.4,1930.1,4.864]
[1742256672678,0.816,1930.6,1930.2,0.55]
[1742256672904,9.63021982,1930.6,1930.2,5.73069]
[1742256673885,8.81467982,1930.4,1930.1,4.861]
[1742256675015,0.7706,1930.3,1930.1,4.861]
[1742256675388,5.95114,1930.3,1930.1,4.861]
[1742256676479,5.18096,1930.2,1929.8,0.55]
[1742256676683,14.59150582,1930.2,1929.9,4.861]
[1742256677106,9.41050582,1930.2,1929.9,4.861]
[1742256677690,4.22954582,1930.2,1929.9,10.04258]
[1742256677910,9.41035582,1930.2,1929.8,5.73185]
[1742256678112,9.41035582,1930.2,1929.9,4.86]
[1742256680808,4.22954582,1930.2,1929.9,4.86]
[1742256681824,9.41037582,1930.2,1929.9,4.86]
[1742256684122,3.63438982,1930.0,1929.9,4.86]
[1742256684430,3.63438982,1930.0,1929.7,0.7942]
[1742256684431,9.56792982,1930.0,1929.7,4.855]
[1742256686026,9.56792982,1930.0,1929.4,1.81983734]
[1742256686027,3.63438982,1929.8,1929.4,1.81983734]
[1742256686205,3.63438982,1929.6,1929.2,15.22767]
[1742256686395,3.63438982,1929.6,1929.3,5.18311]
[1742256688439,3.63438982,1929.6,1929.3,5.18307]
[1742256688602,9.7785548,1929.6,1929.2,0.55]
[1742256688795,3.63438982,1929.4,1929.1,5.19369]
[1742256689026,3.63438982,1929.2,1929.1,0.01]
[1742256689530,9.61638982,1929.4,1929.1,0.01]
[1742256689731,6.5152998,1929.4,1929.1,0.01]
[1742256689902,5.1833,1929.3,1929.1,0.01]
[1742256690321,0.799,1929.4,1929.1,0.01]
[1742256690627,6.02,1929.5,1929.2,5.18339]
[1742256690628,9.65438982,1929.5,1929.2,5.18339]
[1742256690835,9.65438982,1929.5,1929.1,5.19368]
[1742256691015,3.63438982,1929.3,1929.1,0.01]
[1742256693024,9.56855982,1929.3,1929.1,0.01]
[1742256694505,4.38528982,1929.3,1929.1,0.01]
[1742256694731,0.7509,1929.3,1929.1,0.01]
[1742256695036,9.62997982,1929.2,1929.1,0.01]
[1742256695241,11.1113018,1929.2,1929.1,0.01]
[1742256697537,8.81762982,1929.3,1929.1,0.01]
[1742256699740,5.18349,1929.2,1929.1,0.01]
[1742256699960,8.81768982,1929.3,1929.1,0.01]
[1742256702156,11.51188748,1929.5,1929.1,0.56]
[1742256702338,20.3291473,1929.5,1929.1,5.74374]
[1742256702529,25.5120273,1929.5,1929.1,5.74374]
[1742256702729,20.3291473,1929.5,1929.1,10.92732]
[1742256702935,20.3291473,1929.5,1929.1,5.74358]
[1742256703142,18.66685982,1929.5,1929.1,5.74358]
[1742256703351,23.84972982,1929.5,1929.1,5.74358]
[1742256703657,18.66685982,1929.5,1929.1,5.74358]
[1742256704757,9.64685982,1929.5,1929.1,5.74358]
[1742256704946,5.18242,1929.6,1929.3,0.8107]
[1742256705152,8.81663982,1929.7,1929.3,5.9938]
[1742256705352,8.81663982,1929.7,1929.3,11.17691]
[1742256705552,13.99898982,1929.7,1929.3,5.9938]
[1742256705819,8.81663982,1929.7,1929.3,5.9938]
[1742256706062,8.81663982,1929.7,1929.3,5.99375]
[1742256706266,8.81663982,1929.7,1929.3,0.8107]
[1742256706441,8.81663982,1929.7,1929.3,11.17692]
[1742256707031,8.81663982,1929.7,1929.3,5.99379]
[1742256708465,5.18273,1929.5,1929.3,0.8107]
[1742256708643,3.63438982,1929.5,1929.3,0.8107]
[1742256708842,8.81715982,1929.5,1929.1,16.57824]
[1742256709042,8.81715982,1929.5,1929.2,5.18349]
[1742256709954,3.63438982,1929.5,1929.2,5.18349]
[1742256711481,3.63438982,1929.5,1929.2,10.36682]
[1742256711773,3.63438982,1929.5,1929.2,5.18333]
[1742256713365,3.63438982,1929.5,1929.2,5.66814884]
[1742256714438,3.63438982,1929.5,1929.2,5.18333]
[1742256715035,3.63438982,1929.5,1929.2,10.36669]
[1742256715869,3.63438982,1929.5,1929.3,5.1832]
[1742256716382,3.63438982,1929.5,1929.2,5.18333]
[1742256717556,4.45418982,1929.5,1929.2,5.18333]
[1742256717967,9.63687982,1929.5,1929.2,5.18333]
[1742256718168,11.1188238,1929.5,1929.1,6.53064]
[1742256719464,11.1188238,1929.5,1929.1,7.59245085]
[1742256720475,11.1188238,1929.5,1929.1,12.77606085]
[1742256721467,5.96469,1929.2,1929.1,0.01]
[1742256722775,3.63438982,1929.3,1929.1,0.01]
[1742256724388,8.81766982,1929.3,1929.1,0.01]
[1742256724602,5.18349,1929.2,1929.1,0.01]
[1742256724888,0.8143,1929.2,1929.1,0.01]
[1742256725089,10.2960218,1929.3,1929.1,0.01]
[1742256725391,5.18349,1929.2,1929.1,0.01]
[1742256727275,10.2960218,1929.3,1929.1,0.01]
[1742256727473,6.21309218,1929.2,1929.1,0.01]
[1742256728684,10.2960218,1929.3,1929.1,0.01]
[1742256729201,5.18349,1929.2,1929.1,0.01]
[1742256729803,10.2960218,1929.3,1929.1,0.01]
[1742256730721,3.63438982,1929.3,1929.1,5.99345]
[1742256730910,15.68470398,1929.5,1929.2,5.18336]
[1742256730911,8.81710982,1929.5,1929.2,5.18336]
[1742256731486,5.97711,1929.6,1929.2,5.18336]
[1742256731789,14.79411982,1929.6,1929.2,5.18336]
[1742256732289,14.79411982,1929.6,1929.1,5.99354]
[1742256732290,5.18274,1929.5,1929.1,5.9935]
[1742256732704,5.18274,1929.5,1929.1,11.17709]
[1742256732909,5.18274,1929.5,1929.1,12.349841]
[1742256733226,5.18274,1929.5,1929.1,17.214841]
[1742256734003,5.18274,1929.5,1929.1,12.031141]
[1742256734216,3.63438982,1929.2,1929.1,0.01]
[1742256734805,8.81787982,1929.2,1929.1,0.01]
[1742256737298,3.63438982,1929.2,1929.1,0.01]
[1742256737610,8.81735982,1929.4,1929.1,0.01]
[1742256738223,5.18325,1929.3,1929.1,0.01]
[1742256740425,6.58331098,1929.3,1929.1,0.01]
[1742256742633,9.56987982,1929.2,1929.1,0.01]
[1742256746447,9.58317982,1929.2,1929.1,0.01]
[1742256746864,14.45017982,1929.2,1929.1,0.01]
[1742256748746,20.47017982,1929.2,1929.1,0.01]
[1742256748949,23.1755289,1929.2,1929.1,0.01]
[1742256752479,26.1755289,1929.2,1929.1,0.01]
[1742256758378,26.1655289,1929.2,1929.1,0.01]
[1742256758763,21.3085289,1929.2,1929.1,0.01]
[1742256758965,26.1645289,1929.2,1929.1,0.01]
[1742256759401,25.3992289,1929.2,1929.1,0.01]
[1742256762601,20.5432289,1929.2,1929.1,0.01]
[1742256763498,17.5432289,1929.2,1929.1,0.01]
[1742256763701,6.02,1929.2,1929.1,0.01]
[1742256763906,6.02,1929.2,1929.1,0.8414]
[1742256765075,11.20349,1929.2,1929.1,0.01]
[1742256766319,5.18349,1929.2,1929.1,0.01]
[1742256767807,9.02,1929.4,1929.1,5.74362]
[1742256767808,6.02,1929.4,1929.1,5.74362]
[1742256768123,9.65438982,1929.4,1929.1,0.56]
[1742256768625,14.83740982,1929.4,1929.1,0.56]
[1742256768994,20.02055982,1929.4,1929.1,0.56]
[1742256771192,5.18333,1929.3,1929.1,0.56]
[1742256771722,8.81787982,1929.2,1929.1,0.01]
[1742256772292,3.63438982,1929.2,1929.1,0.01]
[1742256773529,8.81787982,1929.2,1929.1,0.01]
[1742256773728,10.9684968,1929.2,1929.1,0.01]
[1742256774228,15.8234968,1929.2,1929.1,0.01]
[1742256774428,18.8234968,1929.2,1929.1,0.01]
[1742256778014,24.8434968,1929.2,1929.1,0.01]
[1742256780202,25.09756733,1929.2,1929.1,0.01]
[1742256780403,24.8434968,1929.2,1929.1,0.01]
[1742256787322,24.0929968,1929.2,1929.1,0.01]
[1742256787723,19.2379968,1929.2,1929.1,0.01]
[1742256788032,17.83787982,1929.2,1929.1,0.01]
[1742256790012,14.83787982,1929.2,1929.1,0.01]
[1742256790215,14.83787982,1929.2,1929.1,0.7776]
[1742256790415,17.83787982,1929.2,1929.1,0.7776]
[1742256791542,6.02,1929.2,1929.1,1.3276]
[1742256791747,6.02,1929.2,1929.1,0.7776]
[1742256793552,6.02,1929.2,1929.1,1.373759]
[1742256795736,14.00053982,1929.4,1929.1,1.373759]
[1742256796335,8.81739982,1929.4,1929.1,1.373759]
[1742256797172,5.18334,1929.3,1929.1,1.373759]
[1742256797371,5.18334,1929.3,1929.1,0.7776]
[1742256797550,5.18248,1929.6,1929.3,5.95064]
[1742256797745,3.0,1929.6,1929.4,0.8253]
[1742256799576,3.63438982,1929.6,1929.4,0.8253]
[1742256799755,6.63438982,1929.6,1929.4,0.8253]
[1742256800069,11.81690982,1929.6,1929.4,0.8253]
[1742256800371,5.18268,1929.5,1929.4,0.8253]
[1742256800572,11.81689982,1929.6,1929.4,0.8253]
[1742256801169,16.99952982,1929.6,1929.4,0.8253]
[1742256801473,8.18251,1929.6,1929.4,0.8253]
[1742256801671,5.18268,1929.5,1929.4,0.8253]
[1742256801876,5.18297,1929.4,1929.2,0.7844]
[1742256803276,8.81706982,1929.5,1929.2,0.7844]
[1742256803447,13.99998982,1929.5,1929.2,0.7844]
[1742256803647,5.18306,1929.4,1929.2,0.7844]
[1742256804347,10.36626,1929.4,1929.2,0.7844]
[1742256804571,3.63438982,1929.3,1929.2,0.7844]
[1742256805555,3.63438982,1929.3,1929.1,0.7915]
[1742256807339,8.81787982,1929.2,1929.1,0.01]
[1742256807547,3.63438982,1929.2,1929.1,0.01]
[1742256815299,3.0,1929.3,1929.2,0.772]
[1742256815793,3.63438982,1929.4,1929.2,0.772]
[1742256816209,6.02,1929.5,1929.3,0.55]
[1742256816390,6.02,1929.5,1929.4,0.772]
[1742256816691,9.02,1929.5,1929.4,0.772]
[1742256817592,6.02,1929.5,1929.4,0.772]
[1742256819092,3.0,1929.6,1929.4,0.772]
[1742256823833,3.0,1929.6,1929.4,5.95493]
[1742256824928,8.81607982,1929.9,1929.5,0.55]
[1742256825104,3.0,1929.8,1929.5,5.73265]
[1742256826028,3.0,1929.8,1929.5,0.55]
[1742256826216,3.63438982,1929.7,1929.5,0.55]
[1742256828431,3.0,1929.8,1929.5,10.91522]
[1742256828733,3.0,1929.8,1929.5,6.901232]
[1742256828901,5.18136,1930.0,1929.6,5.96418]
[1742256829097,3.0,1929.9,1929.6,5.96418]
[1742256829601,6.63438982,1929.9,1929.6,0.7819]
[1742256829807,11.81614982,1929.9,1929.6,0.7819]
[1742256830493,16.99794982,1929.9,1929.6,0.7819]
[1742256830699,11.81614982,1929.9,1929.6,0.7819]
[1742256832140,16.99798982,1929.9,1929.6,0.7819]
[1742256832355,11.81614982,1929.9,1929.6,0.7819]
[1742256836732,16.99798982,1929.9,1929.6,0.7819]
[1742256837231,5.18205,1929.8,1929.6,0.7819]
[1742256837399,8.81653982,1929.7,1929.5,1.3602]
[1742256837728,3.63438982,1929.7,1929.5,1.3602]
[1742256837918,5.18194,1929.8,1929.5,1.3602]
[1742256840335,11.81606982,1929.9,1929.5,6.54288]
[1742256840532,11.81606982,1929.9,1929.5,7.715447]
[1742256841189,16.99786982,1929.9,1929.5,7.715447]
[1742256841352,16.99789982,1929.9,1929.5,7.715447]
[1742256842048,11.81606982,1929.9,1929.5,7.715447]
[1742256842843,16.99786982,1929.9,1929.5,7.715447]
[1742256843548,16.99786982,1929.9,1929.5,1.3602]
[1742256843549,5.18188,1929.8,1929.5,1.3602]
[1742256843842,3.63438982,1929.7,1929.5,1.3602]
[1742256845049,3.63438982,1929.7,1929.5,6.54288]
[1742256845256,11.81606982,1929.9,1929.5,6.54288]
[1742256846056,16.99785982,1929.9,1929.5,6.54288]
[1742256847612,16.99785982,1929.9,1929.5,7.715446]
[1742256847911,11.81606982,1929.9,1929.5,7.715446]
[1742256848846,11.81606982,1929.9,1929.7,0.8044]
[1742256848847,3.63438982,1929.9,1929.7,0.8044]
[1742256849625,3.63438982,1929.9,1929.7,5.98648]
[1742256849821,3.63438982,1929.9,1929.7,0.8044]
[1742256850225,3.63438982,1929.9,1929.7,5.98654]
[1742256850429,8.81613982,1929.9,1929.5,2.526966]
[1742256850726,3.63438982,1929.7,1929.5,1.3544]
[1742256857265,2.18374463,1929.7,1929.5,1.3544]
[1742256857776,2.18374463,1929.7,1929.5,6.53708]
[1742256858787,2.18374463,1929.7,1929.5,1.3544]
[1742256862889,2.18374463,1929.6,1929.4,0.7855]
[1742256863055,2.18374463,1929.5,1929.3,0.55]
[1742256863993,2.18374463,1929.5,1929.3,1.686095]
[1742256864194,2.18374463,1929.5,1929.3,6.869215]
[1742256866901,2.18374463,1929.6,1929.3,6.869085]
[1742256867072,2.18374463,1929.6,1929.4,5.18281]
[1742256871298,2.18374463,1929.7,1929.4,5.18281]
[1742256871470,6.02,1930.0,1929.5,1.3059]
[1742256871665,2.18374463,1929.9,1929.6,5.18217]
[1742256872795,2.18374463,1929.9,1929.7,5.1821]
[1742256877395,2.18374463,1929.9,1929.6,10.36435]
[1742256878500,2.18374463,1929.9,1929.7,5.18214]
[1742256880598,2.18374463,1929.9,1929.6,5.18217]
[1742256880780,2.18374463,1929.9,1929.7,5.18213]
[1742256881086,2.18374463,1929.9,1929.6,5.830977]
[1742256881306,2.18374463,1929.9,1929.6,11.013247]
[1742256883391,2.18374463,1929.9,1929.7,5.73198]
[1742256883778,2.18374463,1929.9,1929.7,10.91404]
[1742256883978,2.18374463,1929.9,1929.8,1.641404]
[1742256884279,2.18374463,1929.9,1929.8,0.55]
[1742256887086,2.18374463,1929.9,1929.8,5.73188]
[1742256887505,2.18374463,1930.0,1929.8,5.73188]
[1742256887707,0.7839,1930.1,1929.9,5.73159]
[1742256887708,3.0,1930.1,1929.9,5.73159]
[1742256888010,2.18374463,1930.3,1930.1,5.18105]
[1742256888207,2.18374463,1930.2,1930.0,5.18109]
[1742256888394,2.18374463,1930.2,1930.0,6.272358]
[1742256888716,2.18374463,1930.3,1930.1,5.18107]
[1742256889012,2.18374463,1930.2,1930.1,5.18107]
[1742256889925,2.18374463,1930.3,1930.1,5.18107]
[1742256891243,2.18374463,1930.3,1930.0,6.272358]
[1742256891543,2.18374463,1930.3,1930.0,11.453558]
[1742256893806,2.18374463,1930.2,1930.0,11.453528]
[1742256894005,2.18374463,1930.3,1930.0,11.453528]
[1742256894204,2.18374463,1930.3,1930.1,5.18107]
[1742256896858,2.18374463,1930.2,1930.0,6.272358]
[1742256897140,2.18374463,1930.2,1930.1,0.6272358]
[1742256897517,2.18374463,1930.3,1930.1,0.6272358]
[1742256897718,2.18374463,1930.3,1930.0,6.272358]
[1742256900344,2.18374463,1930.3,1930.0,11.453548]
[1742256900545,2.18374463,1930.3,1930.0,6.272358]
[1742256900719,2.18374463,1930.3,1930.0,5.18109]
[1742256901447,2.18374463,1930.2,1929.9,5.73157]
[1742256901652,2.18374463,1930.2,1930.0,5.18125]
[1742256901826,2.18374463,1930.2,1930.0,10.36242]
[1742256902032,2.18374463,1930.3,1930.1,5.18107]
[1742256902753,2.18374463,1930.2,1930.0,10.3624]
[1742256902943,2.18374463,1930.2,1930.0,11.45364]
[1742256903147,2.18374463,1930.3,1930.0,11.45364]
[1742256903548,2.18374463,1930.2,1930.0,6.27241]
[1742256905162,2.18374463,1930.2,1930.0,11.45364]
[1742256905458,2.18374463,1930.2,1930.1,5.18107]
[1742256907757,5.18028,1930.4,1930.1,5.18107]
[1742256907961,2.18374463,1930.2,1930.1,5.18107]
[1742256908129,2.18374463,1930.3,1930.1,5.18107]
[1742256908330,2.18374463,1930.2,1930.1,5.18107]
[1742256911063,2.18374463,1930.3,1930.1,5.18107]
[1742256911264,0.7799,1930.7,1930.2,0.55]
[1742256911563,2.18374463,1930.6,1930.4,0.55]
[1742256911765,2.18374463,1930.5,1930.4,0.55]
[1742256912467,2.18374463,1930.5,1930.4,5.73027]
[1742256913278,2.18374463,1930.5,1930.4,0.55]
[1742256913583,5.18374463,1930.5,1930.3,0.55]
[1742256913775,2.18374463,1930.4,1930.3,0.55]
[1742256915573,5.18374463,1930.5,1930.3,0.55]
[1742256916787,2.18374463,1930.4,1930.3,0.55]
[1742256917342,5.18374463,1930.5,1930.3,0.55]
[1742256917541,5.18374463,1930.5,1930.3,5.73053]
[1742256918170,5.18374463,1930.5,1930.3,5.7304]
[1742256918369,5.18374463,1930.5,1930.3,7.305519]
[1742256919380,3.01094463,1930.4,1930.1,10.880087]
[1742256919570,2.18374463,1930.3,1930.2,0.55]
[1742256919944,2.18374463,1930.4,1930.2,5.73079]
[1742256920986,2.18374463,1930.3,1930.2,0.55]
[1742256922165,2.18374463,1930.4,1930.2,5.73081]
[1742256922674,5.18374463,1930.5,1930.2,6.821982]
[1742256922837,5.18374463,1930.5,1930.2,7.645882]
[1742256923813,5.18374463,1930.5,1930.3,5.18048]
[1742256924964,3.0,1930.5,1930.4,0.55]
[1742256925675,5.18374463,1930.6,1930.4,5.747665]
[1742256926050,2.18374463,1930.6,1930.5,5.18]
[1742256926238,2.18374463,1930.6,1930.4,6.8404265]
[1742256926443,2.18374463,1930.5,1930.4,6.8404265]
[1742256927053,2.18374463,1930.5,1930.4,1.6602065]
[1742256927281,2.18374463,1930.5,1930.4,0.567405]
[1742256927594,8.17314463,1930.5,1930.4,0.017405]
[1742256928970,8.17314463,1930.5,1930.1,0.55]
[1742256928971,5.18031,1930.4,1930.1,0.55]
[1742256929170,2.18374463,1930.3,1930.1,0.55]
[1742256930103,2.18374463,1930.2,1930.1,0.55]
[1742256930268,2.18374463,1930.2,1930.1,1.607116]
[1742256930600,2.18374463,1930.3,1930.1,1.607116]
[1742256931099,2.18374463,1930.2,1930.1,1.607116]
[1742256932899,2.18374463,1930.3,1930.1,1.607116]
[1742256934793,2.18374463,1930.3,1930.2,0.017407]
[1742256937909,2.18374463,1930.3,1930.1,1.607116]
[1742256939613,2.18374463,1930.2,1930.1,1.607116]
[1742256939787,2.18374463,1930.2,1930.0,87.60233]
[1742256939788,2.18374463,1930.2,1930.0,72.4]
[1742256939988,2.18374463,1930.1,1930.0,72.4]
[1742256940204,2.18374463,1930.1,1930.0,72.95]
[1742256941184,2.18374463,1930.2,1930.0,72.95]
[1742256946823,0.7518,1930.4,1930.1,0.55]
[1742256947122,2.18374463,1930.3,1930.1,5.78820749]
[1742256947320,2.18374463,1930.2,1930.1,5.78820749]
[1742256947524,2.18374463,1930.3,1930.1,5.78820749]
[1742256947924,13.859,1930.6,1930.5,56.10400537]
[1742256948126,10.02274463,1930.6,1930.5,56.10400537]
[1742256948330,15.20247463,1930.6,1930.5,56.10400537]
[1742256950829,15.97727463,1930.6,1930.5,56.10400537]
[1742256951030,15.95987063,1930.6,1930.5,56.10400537]
[1742256966246,11.13827463,1930.6,1930.5,56.10400537]
[1742256966440,15.97727463,1930.6,1930.5,56.10400537]
[1742256968353,18.69494909,1930.6,1930.5,56.10400537]
[1742256969712,20.87869372,1930.6,1930.5,56.10400537]
[1742256969919,26.89869372,1930.6,1930.5,56.10400537]
[1742256972649,27.28982942,1930.6,1930.5,56.10400537]
[1742256972854,25.10608479,1930.6,1930.5,56.10400537]
[1742256973055,26.12751339,1930.6,1930.5,56.10400537]
[1742256974769,28.31125802,1930.6,1930.5,56.10400537]
[1742256980672,28.26125802,1930.6,1930.5,56.10400537]
[1742256981447,26.07751339,1930.6,1930.5,56.10400537]
[1742256981650,28.26125802,1930.6,1930.5,56.10400537]
[1742256982069,26.07751339,1930.6,1930.5,56.10400537]
[1742256983566,22.58503893,1930.6,1930.5,56.10400537]
[1742256983775,21.17247463,1930.6,1930.5,56.10400537]
[1742256984577,23.35621926,1930.6,1930.5,56.10400537]
[1742256984951,21.17247463,1930.6,1930.5,56.10400537]
[1742256985450,21.56205821,1930.6,1930.5,56.10400537]
[1742256985749,21.17247463,1930.6,1930.5,56.10400537]
[1742256989180,21.56737134,1930.6,1930.5,56.10400537]
[1742256993377,26.13372036,1930.6,1930.5,56.10400537]
[1742256993880,29.11736499,1930.6,1930.5,56.10400537]
[1742256994078,26.93362036,1930.6,1930.5,56.10400537]
[1742256994850,29.11736499,1930.6,1930.5,56.10400537]
[1742256995050,26.93362036,1930.6,1930.5,56.10400537]
[1742256995268,26.53872365,1930.6,1930.5,56.10400537]
[1742256996748,25.73882365,1930.6,1930.5,56.10400537]
[1742256997047,21.17247463,1930.6,1930.5,56.10400537]
[1742257002792,23.35621926,1930.6,1930.5,56.10400537]
[1742257002997,21.17247463,1930.6,1930.5,56.10400537]
[1742257003202,23.35621926,1930.6,1930.5,56.10400537]
[1742257004996,24.15881926,1930.6,1930.5,56.10400537]
[1742257005205,28.94622006,1930.6,1930.5,56.10400537]
[1742257006864,28.94622006,1930.6,1930.5,54.68500537]
[1742257007393,28.94622006,1930.6,1930.5,49.57300537]
[1742257011868,21.12087543,1930.6,1930.5,49.57300537]
[1742257012210,21.17147463,1930.6,1930.5,49.57300537]
[1742257012567,16.33347463,1930.6,1930.5,49.57300537]
[1742257012901,21.17147463,1930.6,1930.5,49.57300537]
[1742257022672,23.35521926,1930.6,1930.5,49.57300537]
[1742257022906,24.13681926,1930.6,1930.5,49.57300537]
[1742257023103,27.10672518,1930.6,1930.5,49.57300537]
[1742257024205,24.92298055,1930.6,1930.5,49.57300537]